bitfinex/quotes_SOLUSD_20250818
["timestamp","ask_amount","ask_price","bid_price","bid_amount"]
[1755495988387,39.93762591,182.1,182.09,0.03]
[1755495988694,52.62998626,182.09,182.08,0.03]
[1755495988895,65.55060481,182.09,182.08,0.03]
[1755495990178,65.54645257,182.09,182.08,0.03]
[1755495990578,71.03824234,182.09,182.08,0.03]
[1755495991694,70.91824234,182.09,182.08,0.03]
[1755495993198,71.03824234,182.09,182.08,0.03]
[1755495993495,71.03824234,182.09,182.05,79.43]
[1755495993496,41.10621557,182.06,182.05,79.43]
[1755495993798,56.82277273,182.06,182.05,0.03]
[1755495995173,62.31546744,182.06,182.05,0.03]
[1755495996364,62.43546744,182.06,182.05,0.03]
[1755495996570,71.02690155,182.06,182.04,0.03]
[1755495996875,79.42454489,182.05,182.02,0.03]
[1755495997063,45.75804828,182.04,182.02,0.03]
[1755495997277,51.25134645,182.04,182.02,0.03]
[1755495997783,51.37134645,182.04,182.02,0.03]
[1755495998194,40.47756202,182.04,182.02,0.03]
[1755495998389,85.64838633,182.03,182.02,0.03]
[1755495998689,85.64375283,182.03,182.02,0.03]
[1755495998874,86.19341478,182.03,182.02,0.03]
[1755495999079,86.31341478,182.03,182.02,0.03]
[1755495999275,65.80701473,182.03,182.02,0.03]
[1755496000278,61.58309851,182.03,182.02,0.03]
[1755496000476,57.54624089,182.03,182.02,0.03]
[1755496001398,53.90311637,182.03,182.02,0.03]
[1755496001590,57.649818,182.03,182.02,0.03]
[1755496002090,76.78324905,182.03,182.02,1e-08]
[1755496002799,41.10621557,181.99,181.89,0.67]
[1755496002987,7.41985447,181.9,181.87,0.67]
[1755496003176,26.0,181.9,181.87,0.67]
[1755496003497,7.41985447,181.88,181.83,40.42]
[1755496003678,0.54966195,181.89,181.83,40.42]
[1755496004001,7.41985447,181.88,181.84,0.67]
[1755496004174,6.04752388,181.89,181.84,0.67]
[1755496004375,11.5551706,181.89,181.84,0.67]
[1755496004576,26.0,181.9,181.85,11.5551706]
[1755496004782,26.54966195,181.93,181.86,0.67]
[1755496005082,11.5551706,181.9,181.86,0.67]
[1755496005287,12.10483255,181.92,181.86,12.2251706]
[1755496005489,12.10483255,181.92,181.87,0.67]
[1755496005692,15.16692904,181.92,181.87,0.67]
[1755496006011,11.5551706,181.91,181.87,0.67]
[1755496006503,11.5551706,181.89,181.88,0.72]
[1755496006688,3.60948854,181.92,181.88,0.72]
[1755496006880,3.60948854,181.93,181.89,11.5551706]
[1755496007087,17.60056201,181.96,181.9,12.2751706]
[1755496007282,17.60056201,181.96,181.91,0.72]
[1755496007603,15.16396574,181.95,181.91,0.72]
[1755496008527,20.66009455,181.95,181.92,0.72]
[1755496008681,11.5551706,181.93,181.89,0.72]
[1755496008888,4.15717414,181.93,181.89,0.72]
[1755496009087,0.54966195,181.93,181.9,0.72]
[1755496009392,4.15717414,181.93,181.9,0.72]
[1755496009702,17.0523945,181.91,181.9,79.4]
[1755496009911,0.54966195,181.95,181.9,0.72]
[1755496010114,15.71111696,181.96,181.91,11.5551706]
[1755496010291,4.15594636,181.96,181.92,0.72]
[1755496010987,4.15594636,181.96,181.92,12.2751706]
[1755496011183,15.71111696,181.96,181.91,11.5551706]
[1755496011424,3.60628441,181.96,181.93,0.72]
[1755496011713,3.60628441,181.98,181.93,6.21648614]
[1755496011919,3.60628441,181.97,181.94,0.72]
[1755496012118,3.60628441,181.98,181.94,0.72]
[1755496012430,15.71111696,181.97,181.95,0.72]
[1755496012585,3.60628441,181.96,181.93,41.16]
[1755496012784,3.60628441,181.96,181.94,0.72]
[1755496013005,15.16145501,181.97,181.95,0.72]
[1755496013323,11.5551706,181.99,181.94,11.5551706]
[1755496013487,3.60536104,181.98,181.94,11.5551706]
[1755496013685,3.60536104,181.99,181.94,17.0514572]
[1755496013885,3.60536104,181.98,181.95,0.72]
[1755496014091,3.60536104,181.99,181.95,0.72]
[1755496014318,3.60536104,181.98,181.95,0.72]
[1755496014516,43.59897721,182.02,181.96,11.5551706]
[1755496014721,3.6067186,182.01,181.97,0.72]
[1755496015007,3.60679512,182.0,181.98,0.72]
[1755496015212,3.60765719,181.99,181.98,0.72]
[1755496016514,21.20729714,181.99,181.95,0.72]
[1755496016697,11.5551706,181.96,181.93,0.72]
[1755496016898,11.5551706,181.94,181.93,0.72]
[1755496017420,11.5551706,181.94,181.91,0.72]
[1755496017593,11.5551706,181.94,181.92,0.72]
[1755496017793,11.5551706,181.93,181.92,80.12]
[1755496018121,11.5551706,181.93,181.92,79.4]
[1755496018506,15.16355217,181.93,181.92,79.4]
[1755496018690,15.16355217,181.93,181.88,0.72]
[1755496019017,11.5551706,181.9,181.88,0.72]
[1755496019223,11.5551706,181.9,181.88,80.12]
[1755496020136,17.0524862,181.91,181.89,0.72]
[1755496020307,11.5551706,181.91,181.89,0.72]
[1755496020513,11.5551706,181.93,181.9,0.72]
[1755496020824,3.60869763,181.95,181.9,91.6751706]
[1755496021010,3.60869763,181.95,181.9,79.4]
[1755496021011,11.5551706,181.95,181.9,79.4]
[1755496021320,3.60877699,181.94,181.91,0.72]
[1755496021494,11.5551706,181.95,181.91,40.42]
[1755496021698,3.60897917,181.94,181.92,0.72]
[1755496022000,11.5551706,181.95,181.93,0.72]
[1755496022215,3.60898177,181.94,181.93,0.72]
[1755496022521,3.60898177,181.94,181.92,79.4]
[1755496022720,11.5551706,181.95,181.92,79.4]
[1755496022894,3.60989568,181.94,181.93,0.72]
[1755496023494,3.60989568,181.97,181.93,91.6751706]
[1755496023705,0.06,181.99,181.96,5.49571334]
[1755496023906,3.61181937,181.98,181.95,40.4]
[1755496024123,11.6151706,181.99,181.96,0.72]
[1755496024303,3.61314295,181.98,181.95,40.4]
[1755496024513,0.06,181.99,181.97,0.72]
[1755496024700,3.61311184,181.98,181.97,0.72]
[1755496029613,3.61311184,181.98,181.95,46.61593812]
[1755496029816,3.61311184,181.97,181.96,0.72]
[1755496030012,3.61311184,181.97,181.96,80.12]
[1755496032014,3.61311184,181.97,181.96,85.61571334]
[1755496033432,3.61311184,181.97,181.96,84.89571334]
[1755496033626,3.61311184,181.97,181.96,79.4]
[1755496034331,3.61311184,181.97,181.96,80.12]
[1755496034517,3.61311184,181.97,181.96,85.61571334]
[1755496034721,0.06,181.99,181.96,85.61571334]
[1755496035012,0.06,181.99,181.97,41.1]
[1755496035404,0.06,181.99,181.98,0.72]
[1755496035714,3.69264322,181.99,181.98,0.72]
[1755496035914,3.69264322,181.99,181.98,97.17027995]
[1755496036124,0.06,181.99,181.98,97.17027995]
[1755496038131,0.06,181.99,181.98,120.5]
[1755496038435,0.06,181.99,181.98,79.4]
[1755496038735,0.06,181.99,181.98,119.76]
[1755496039126,0.06,181.99,181.98,125.92510935]
[1755496039331,0.06,181.99,181.98,120.43]
[1755496039526,0.06,181.99,181.98,119.76]
[1755496040400,11.6151706,181.99,181.98,79.4]
[1755496040605,3.69662203,181.99,181.98,119.76]
[1755496040806,0.06,181.99,181.98,120.43]
[1755496041611,0.06,181.99,181.98,137.48027995]
[1755496041807,0.06,182.01,181.99,79.34]
[1755496042027,0.06,182.01,182.0,51.9151706]
[1755496042350,0.06,182.01,182.0,52.5851706]
[1755496043128,0.06,182.01,182.0,41.03]
[1755496043441,0.06,182.01,182.0,52.5851706]
[1755496043603,0.06,182.01,182.0,40.36]
[1755496045329,0.06,182.01,182.0,41.03]
[1755496045517,0.06,182.01,182.0,52.5851706]
[1755496045715,0.06,182.01,182.0,40.36]
[1755496046326,0.06,182.01,182.0,52.5851706]
[1755496046534,0.06,182.05,182.01,15.10621557]
[1755496046726,0.06,182.05,182.02,40.36]
[1755496046920,0.06,182.05,182.02,46.52383247]
[1755496047136,11.5551706,182.04,182.03,40.36]
[1755496047353,0.06,182.05,182.02,40.36]
[1755496047529,11.6151706,182.05,182.02,40.36]
[1755496047950,11.5551706,182.04,182.02,40.36]
[1755496048129,3.6343175,182.04,182.02,40.36]
[1755496048445,7.4166277,182.03,182.02,40.36]
[1755496048645,3.6343175,182.04,182.0,40.36]
[1755496048852,7.4166277,182.01,181.95,0.67]
[1755496049145,7.4166277,182.01,181.93,9.13088835]
[1755496049146,26.0,181.99,181.93,3.634317]
[1755496049354,4.42397945,181.98,181.93,3.634317]
[1755496049520,29.8743175,181.97,181.89,41.2]
[1755496049722,4.18397945,181.96,181.9,0.67]
[1755496049928,0.54966195,181.96,181.93,0.03]
[1755496050128,0.54966195,181.96,181.94,0.67]
[1755496050326,26.0,181.99,181.94,0.67]
[1755496050543,11.5441489,181.96,181.93,0.03]
[1755496050720,3.63441184,181.95,181.93,0.03]
[1755496050927,3.63441184,181.94,181.93,0.03]
[1755496051123,3.87441184,181.94,181.93,0.03]
[1755496051321,3.63441184,181.94,181.93,0.03]
[1755496052320,19.96145761,181.94,181.93,0.03]
[1755496052534,26.0,181.92,181.91,0.03]
[1755496052731,15.17856074,181.92,181.91,0.03]
[1755496052950,13.40639472,181.92,181.91,0.03]
[1755496053128,26.0,181.89,181.87,0.03]
[1755496053332,4.18407379,181.88,181.87,0.03]
[1755496053635,30.39407379,181.88,181.87,0.03]
[1755496053843,30.18407379,181.88,181.87,0.03]
[1755496054034,4.18407379,181.88,181.87,0.03]
[1755496054228,3.63441184,181.88,181.87,0.7]
[1755496054427,3.6279328,181.91,181.87,0.7]
[1755496054656,4.17759475,181.93,181.88,0.67]
[1755496054875,3.6279328,181.92,181.89,0.67]
[1755496055046,3.62710706,181.91,181.87,0.03]
[1755496055366,4.17676901,181.9,181.87,0.03]
[1755496055526,3.62710706,181.89,181.87,0.03]
[1755496055726,3.62710706,181.88,181.87,0.7]
[1755496055954,4.38533671,181.89,181.87,0.03]
[1755496056257,3.62567476,181.9,181.87,0.7]
[1755496056559,3.62430339,181.96,181.89,37.5441489]
[1755496056740,3.62430339,181.95,181.9,15.77621557]
[1755496056941,4.59388382,181.99,181.91,0.67]
[1755496056942,3.62430339,181.94,181.91,0.67]
[1755496057264,11.5441489,181.92,181.87,0.03]
[1755496057554,4.17396534,181.91,181.87,0.03]
[1755496057760,3.62430339,181.9,181.87,0.03]
[1755496057940,3.62430339,181.91,181.88,0.67]
[1755496058138,3.62430339,181.92,181.9,11.5441489]
[1755496058341,3.62430339,181.94,181.91,12.2141489]
[1755496058552,3.62430339,181.95,181.92,0.67]
[1755496058872,11.5441489,181.93,181.89,0.67]
[1755496059033,11.5441489,181.93,181.87,0.03]
[1755496059034,37.5441489,181.9,181.87,0.03]
[1755496059234,11.5441489,181.88,181.87,0.03]
[1755496059466,15.10621557,181.87,181.84,0.03]
[1755496059755,15.10621557,181.87,181.71,13.75813248]
[1755496059756,26.0,181.75,181.69,0.77]
[1755496059937,26.54966195,181.78,181.69,6.27379547]
[1755496060124,11.5441489,181.76,181.71,11.5441489]
[1755496060331,26.0,181.77,181.72,12.2141489]
[1755496060544,0.54966195,181.82,181.73,0.67]
[1755496060941,5.50145788,181.77,181.7,0.67]
[1755496061147,11.5441489,181.73,181.7,0.67]
[1755496061353,11.5441489,181.71,181.69,0.1]
[1755496061561,11.5441489,181.7,181.69,0.1]
[1755496061741,12.09381085,181.7,181.69,0.1]
[1755496061936,12.21381085,181.7,181.69,0.1]
[1755496062143,26.66966195,181.7,181.69,0.1]
[1755496062650,38.21381085,181.7,181.69,0.1]
[1755496062971,62.42278811,181.7,181.69,0.1]
[1755496063156,15.10621557,181.69,181.59,0.67]
[1755496063468,15.10621557,181.69,181.56,12.2141489]
[1755496063469,26.0,181.66,181.56,12.2141489]
[1755496063689,0.54966195,181.65,181.62,11.5441489]
[1755496063986,3.59130039,181.69,181.64,11.5441489]
[1755496064148,11.5441489,181.66,181.62,0.67]
[1755496064342,0.54966195,181.65,181.59,0.67]
[1755496064541,37.5441489,181.66,181.59,0.67]
[1755496064741,0.54966195,181.65,181.59,0.67]
[1755496064941,11.5441489,181.62,181.59,0.67]
[1755496065175,26.54966195,181.65,181.57,0.67]
[1755496065356,32.05476528,181.65,181.57,0.67]
[1755496065683,26.0,181.61,181.55,0.03]
[1755496065885,0.54966195,181.6,181.55,0.03]
[1755496066200,11.5441489,181.56,181.55,0.03]
[1755496066400,11.6641489,181.56,181.55,0.03]
[1755496066553,0.54966195,181.58,181.55,0.03]
[1755496066755,26.0,181.56,181.55,0.03]
[1755496067187,0.54966195,181.59,181.55,0.03]
[1755496067403,0.54966195,181.62,181.56,0.72]
[1755496067582,3.41534974,181.64,181.59,0.03]
[1755496067800,2.86568779,181.64,181.59,0.75]
[1755496068162,2.86568779,181.64,181.63,11.5441489]
[1755496068360,3.56462449,181.7,181.63,84.3841489]
[1755496068560,8.64817026,181.77,181.69,11.5441489]
[1755496068781,3.56462449,181.78,181.7,0.72]
[1755496068982,3.56462449,181.78,181.71,5.50327444]
[1755496069302,3.56462449,181.79,181.75,11.5441489]
[1755496069486,3.56462449,181.79,181.78,11.5441489]
[1755496069686,3.56462449,181.82,181.78,0.72]
[1755496069887,11.5441489,181.81,181.75,26.0]
[1755496070107,8.09850831,181.83,181.76,0.72]
[1755496070312,3.56462449,181.82,181.78,17.92507386]
[1755496070486,3.56462449,181.82,181.81,17.92507386]
[1755496070690,3.56462449,181.86,181.83,26.0]
[1755496070904,3.56462449,181.89,181.86,5.49873529]
[1755496071089,3.56462449,181.89,181.88,17.92507386]
[1755496071290,4.53388382,181.9,181.88,0.72]
[1755496071502,4.53388382,181.91,181.89,43.92507386]
[1755496071730,3.56009946,181.9,181.87,46.54]
[1755496071886,3.56009946,181.89,181.87,0.72]
[1755496072084,4.53388382,181.9,181.86,26.0]
[1755496072436,17.92507386,181.93,181.88,17.92507386]
[1755496072611,0.06,181.96,181.86,26.0]
[1755496072612,0.06,181.96,181.92,17.92507386]
[1755496072799,0.06,181.96,181.89,0.72]
[1755496073001,17.92507386,181.95,181.89,18.64507386]
[1755496073303,0.54966195,181.94,181.86,0.72]
[1755496073630,0.77,181.96,181.77,10.0]
[1755496073631,0.06,181.96,181.89,15.10621557]
[1755496073780,0.06,181.96,181.93,26.0]
[1755496074223,0.06,181.96,181.95,17.92507386]
[1755496074721,0.06,181.96,181.95,33.75128943]
[1755496075082,0.06,181.96,181.95,39.24730481]
[1755496075991,0.06,181.96,181.95,65.24730481]
[1755496076232,0.06,181.96,181.95,32.21601538]
[1755496076427,0.06,181.96,181.95,49.42108924]
[1755496076752,0.06,181.96,181.94,47.02]
[1755496077037,0.77,181.96,181.9,47.02]
[1755496077435,4.01689323,181.96,181.9,64.94507386]
[1755496077650,17.92507386,181.95,181.9,47.02]
[1755496077928,0.06,181.96,181.88,18.64507386]
[1755496078135,17.92507386,181.93,181.89,47.1]
[1755496078432,0.71,181.93,181.86,47.1]
[1755496078732,17.92507386,181.91,181.86,47.1]
[1755496078937,17.92507386,181.9,181.86,47.1]
[1755496079309,0.54966195,181.92,181.88,17.92507386]
[1755496079523,0.06,181.96,181.91,43.92507386]
[1755496079722,0.06,181.96,181.92,47.26]
[1755496079926,0.06,181.96,181.95,17.92507386]
[1755496080338,0.06,181.96,181.95,33.75128943]
[1755496080636,0.06,181.99,181.98,26.0]
[1755496080849,0.06,181.99,181.98,106.37128943]
[1755496081006,0.06,182.02,182.01,26.0]
[1755496081306,1e-08,182.05,182.04,41.10621557]
[1755496081507,3.96080386,182.12,182.05,15.10621557]
[1755496081736,0.06,182.13,182.1,17.92507386]
[1755496082050,0.06,182.13,182.11,17.92507386]
[1755496082211,0.06,182.13,182.12,17.92507386]
[1755496082408,0.06,182.13,182.12,18.64507386]
[1755496082849,1e-08,182.14,182.13,15.10621557]
[1755496083021,0.06,182.15,182.14,46.59649777]
[1755496083219,0.06,182.15,182.14,112.50157163]
[1755496083408,0.06,182.16,182.15,41.10621557]
[1755496083614,0.06,182.17,182.15,34.3002875]
[1755496083824,1e-08,182.17,182.16,59.75128943]
[1755496084022,1e-08,182.18,182.16,59.75128943]
[1755496084223,0.06,182.21,182.2,15.10621557]
[1755496084453,0.06,182.21,182.2,80.33128943]
[1755496084749,0.2,182.23,182.2,63.12621557]
[1755496084966,0.2,182.23,182.21,65.23946241]
[1755496085555,0.2,182.23,182.21,112.51946241]
[1755496085727,0.2,182.23,182.21,96.65324684]
[1755496085941,0.2,182.23,182.21,26.0]
[1755496086259,0.2,182.23,182.21,97.37324684]
[1755496086418,0.2,182.23,182.21,112.47946241]
[1755496086613,0.2,182.23,182.21,94.55438855]
[1755496086943,0.2,182.23,182.21,79.46817298]
[1755496087260,0.2,182.23,182.21,50.13324684]
[1755496087548,0.2,182.23,182.21,96.65324684]
[1755496087741,0.2,182.23,182.21,73.24]
[1755496087944,0.2,182.23,182.21,47.22]
[1755496088122,17.92507386,182.26,182.21,47.22]
[1755496088453,2.199071,182.35,182.13,2.199434]
[1755496088631,17.92507386,182.19,182.14,5.4902822]
[1755496088815,10.0,182.32,182.15,47.2]
[1755496089021,3.92984536,182.31,182.17,17.92507386]
[1755496089219,3.92984536,182.3,182.2,17.92507386]
[1755496089542,5.48486178,182.32,182.19,47.22]
[1755496089724,17.92507386,182.26,182.21,17.92507386]
[1755496089920,17.92507386,182.27,182.22,17.92507386]
[1755496090231,2.199071,182.35,182.29,26.0]
[1755496090232,0.37,182.35,182.29,26.0]
[1755496090447,0.2,182.36,182.31,17.92507386]
[1755496090914,0.2,182.36,182.29,73.16]
[1755496091121,0.2,182.36,182.3,5.48546352]
[1755496091334,0.2,182.36,182.33,17.92507386]
[1755496091570,0.2,182.36,182.32,17.92507386]
[1755496091955,0.2,182.36,182.33,0.72]
[1755496092140,0.2,182.36,182.33,18.64507386]
[1755496092340,0.2,182.36,182.32,17.92507386]
[1755496092540,18.12507386,182.36,182.31,17.92507386]
[1755496092849,0.2,182.36,182.3,47.32]
[1755496093047,17.92507386,182.33,182.3,47.32]
[1755496093244,0.37,182.35,182.25,31.48674325]
[1755496093245,17.92507386,182.31,182.25,31.48674325]
[1755496093439,15.10621557,182.34,182.21,20.77802132]
[1755496093639,0.37,182.32,182.21,20.77802132]
[1755496093848,17.92507386,182.25,182.22,47.28]
[1755496094058,17.92507386,182.29,182.23,17.92507386]
[1755496094262,17.92507386,182.28,182.22,48.0]
[1755496094457,41.47621557,182.33,182.22,65.92507386]
[1755496094648,17.92507386,182.28,182.22,48.0]
[1755496094873,15.10621557,182.29,182.19,5.48864048]
[1755496095039,17.92507386,182.21,182.17,47.24]
[1755496095367,15.10621557,182.29,182.17,47.24]
[1755496095368,17.92507386,182.29,182.2,43.92507386]
[1755496095678,26.0,182.32,182.25,17.92507386]
[1755496095880,21.15990987,182.36,182.28,17.92507386]
[1755496096171,0.06,182.31,182.26,0.72]
[1755496096688,0.06,182.31,182.28,17.92507386]
[1755496096844,0.06,182.31,182.29,17.92507386]
[1755496097042,0.06,182.31,182.3,5.48546352]
[1755496097378,0.06,182.31,182.29,71.48079339]
[1755496097558,0.06,182.31,182.3,17.92507386]
[1755496097739,0.06,182.31,182.3,0.69]
[1755496098080,0.06,182.31,182.3,18.61507386]
[1755496098804,0.06,182.31,182.29,31.48571953]
[1755496098963,0.06,182.31,182.29,73.32]
[1755496099579,0.06,182.31,182.29,96.73070596]
[1755496099773,0.06,182.31,182.29,73.32]
[1755496099977,0.06,182.31,182.29,47.32]
[1755496100181,0.06,182.31,182.24,26.0]
[1755496100376,17.92507386,182.27,182.25,47.24]
[1755496100692,0.37,182.3,182.21,24.10319457]
[1755496100890,0.06,182.31,182.25,17.92507386]
[1755496101070,0.06,182.31,182.27,23.4111927]
[1755496101391,0.06,182.31,182.27,5.48611884]
[1755496101575,0.06,182.31,182.28,18.61507386]
[1755496101774,0.06,182.31,182.28,0.69]
[1755496102363,0.06,182.31,182.29,0.69]
[1755496102585,0.06,182.31,182.3,43.92507386]
[1755496102780,0.06,182.31,182.3,91.20507386]
[1755496103181,0.06,182.31,182.3,112.48675295]
[1755496103388,0.06,182.31,182.3,32.17546352]
[1755496103585,0.06,182.31,182.3,97.32053738]
[1755496104162,0.06,182.31,182.3,79.39546352]
[1755496104369,0.06,182.31,182.3,73.22]
[1755496104601,0.06,182.31,182.3,97.32053738]
[1755496104778,0.2,182.36,182.34,17.92507386]
[1755496105003,0.2,182.36,182.34,47.18]
[1755496106296,18.12507386,182.36,182.32,47.14]
[1755496106499,17.92507386,182.34,182.3,47.1]
[1755496106694,17.92507386,182.32,182.28,47.08]
[1755496106899,5.68371783,182.36,182.29,18.61507386]
[1755496107080,17.92507386,182.35,182.29,17.92507386]
[1755496107281,17.92507386,182.35,182.29,23.41061566]
[1755496107587,17.92507386,182.34,182.29,17.92507386]
[1755496107788,17.92507386,182.34,182.29,18.61507386]
[1755496107996,5.6837101,182.36,182.29,18.61507386]
[1755496107997,17.92507386,182.35,182.3,0.69]
[1755496108182,17.92507386,182.34,182.28,70.49110134]
[1755496108701,17.92507386,182.35,182.29,17.92507386]
[1755496108870,17.92507386,182.34,182.28,71.18110134]
[1755496109071,17.92507386,182.33,182.28,71.18110134]
[1755496109384,17.92507386,182.34,182.29,0.69]
[1755496109701,18.12507386,182.36,182.3,18.61507386]
[1755496109879,0.2,182.36,182.32,17.92507386]
[1755496110085,0.2,182.36,182.33,0.69]
[1755496110903,17.92507386,182.35,182.31,46.92]
[1755496111107,17.92507386,182.34,182.31,46.92]
[1755496111281,17.92507386,182.33,182.31,46.92]
[1755496111488,17.92507386,182.33,182.29,46.82]
[1755496111720,5.48462047,182.33,182.28,26.0]
[1755496111875,17.92507386,182.29,182.27,46.82]
[1755496112199,17.92507386,182.28,182.24,0.69]
[1755496112405,19.19602287,182.33,182.23,17.92507386]
[1755496112570,5.48462047,182.33,182.25,0.69]
[1755496112766,17.92507386,182.27,182.18,5.48882205]
[1755496113010,17.92507386,182.25,182.21,0.69]
[1755496113179,17.92507386,182.25,182.22,0.69]
[1755496113574,0.43,182.29,182.22,0.69]
[1755496113803,17.92507386,182.28,182.23,18.61507386]
[1755496114025,17.92507386,182.29,182.24,0.69]
[1755496114303,17.92507386,182.29,182.25,0.69]
[1755496114506,31.48420968,182.35,182.26,44.61507386]
[1755496114809,17.92507386,182.34,182.27,47.43]
[1755496114974,17.92507386,182.33,182.28,17.92507386]
[1755496115311,17.92507386,182.33,182.29,0.69]
[1755496115471,17.92507386,182.33,182.3,0.69]
[1755496115899,17.92507386,182.34,182.3,0.69]
[1755496116281,17.92507386,182.33,182.31,0.69]
[1755496116484,0.2,182.36,182.31,0.69]
[1755496116996,17.92507386,182.34,182.31,0.69]
[1755496117388,17.92507386,182.33,182.31,0.69]
[1755496117710,17.92507386,182.32,182.27,52.91606661]
[1755496117914,17.92507386,182.29,182.26,26.0]
[1755496118280,0.43,182.33,182.26,26.69]
[1755496118605,17.92507386,182.29,182.26,0.69]
[1755496118900,5.48395941,182.35,182.27,0.69]
[1755496119105,17.92507386,182.31,182.27,0.69]
[1755496119312,17.92507386,182.33,182.28,26.69]
[1755496119474,6.11374201,182.36,182.28,26.0]
[1755496119675,17.92507386,182.34,182.3,5.48546352]
[1755496119877,3.58362092,182.33,182.3,6.17546352]
[1755496120181,17.92507386,182.34,182.3,6.17546352]
[1755496120387,3.58727631,182.33,182.31,0.69]
[1755496120579,0.2,182.36,182.31,0.69]
[1755496120780,17.92507386,182.34,182.31,0.69]
[1755496121091,3.5872839,182.33,182.31,0.69]
[1755496121302,3.59084494,182.32,182.31,0.69]
[1755496121711,0.2,182.36,182.31,6.17496713]
[1755496122025,17.92507386,182.34,182.31,6.17496713]
[1755496122524,4.00772045,182.33,182.31,6.17496713]
[1755496122688,4.00772045,182.32,182.3,5.4853999]
[1755496122888,0.2,182.36,182.29,46.52]
[1755496122889,21.93387004,182.31,182.29,46.52]
[1755496123104,21.93387004,182.31,182.25,18.61507386]
[1755496123105,17.92507386,182.31,182.26,5.48666665]
[1755496123284,17.92507386,182.29,182.26,5.48666665]
[1755496123489,4.02096465,182.28,182.25,78.49688161]
[1755496123719,4.02096465,182.27,182.25,78.49688161]
[1755496123928,4.02096465,182.26,182.25,52.49688161]
[1755496124217,7.64695651,182.26,182.25,47.01]
[1755496124386,25.57203037,182.26,182.25,46.32]
[1755496124816,21.94603851,182.26,182.23,5.51750116]
[1755496125049,21.94603851,182.25,182.23,5.51750116]
[1755496125212,4.02096465,182.24,182.23,5.51750116]
[1755496125817,4.04062298,182.24,182.23,6.20750116]
[1755496126314,4.04062298,182.24,182.23,5.51750116]
[1755496126619,25.59796891,182.24,182.23,0.03]
[1755496126801,7.67289505,182.24,182.23,0.03]
[1755496127123,25.59796891,182.24,182.23,0.03]
[1755496128034,31.08523844,182.24,182.23,0.03]
[1755496128318,25.59796891,182.24,182.23,0.03]
[1755496128496,7.67289505,182.24,182.23,0.7]
[1755496128697,3.63227207,182.24,182.23,0.7]
[1755496128912,25.6029969,182.24,182.23,0.03]
[1755496129705,31.09026643,182.24,182.23,0.03]
[1755496130007,49.44534029,182.24,182.23,0.03]
[1755496130215,31.52026643,182.24,182.23,0.03]
[1755496130532,31.52026643,182.24,182.21,0.03]
[1755496130848,7.67792304,182.23,182.21,0.03]
[1755496131001,25.6029969,182.22,182.21,0.03]
[1755496131407,25.6029969,182.22,182.21,0.7]
[1755496131628,25.6029969,182.22,182.21,0.03]
[1755496132143,25.59954594,182.22,182.21,0.03]
[1755496132559,7.67447208,182.22,182.21,0.03]
[1755496132836,31.08741774,182.22,182.21,0.03]
[1755496134036,7.67447208,182.22,182.21,0.03]
[1755496134218,17.92507386,182.22,182.21,0.7]
[1755496134424,17.92507386,182.22,182.21,0.03]
[1755496135127,39.71620107,182.27,182.21,0.03]
[1755496135346,17.92507386,182.22,182.21,0.03]
[1755496136033,5.48666739,182.26,182.21,0.03]
[1755496136223,17.92507386,182.22,182.21,0.03]
[1755496136860,22.39182331,182.22,182.21,0.03]
[1755496137017,26.02168631,182.22,182.21,0.03]
[1755496137218,27.47280866,182.22,182.21,0.03]
[1755496137418,17.92507386,182.23,182.21,0.7]
[1755496137648,5.48546352,182.3,182.21,0.7]
[1755496137855,17.92507386,182.24,182.21,0.7]